bitfinex/quotes_BTCUSD_20250927
["timestamp","ask_amount","ask_price","bid_price","bid_amount"]
[1758999478909,9.35127666,109700.0,109690.0,0.4377382]
[1758999479361,9.36557626,109700.0,109690.0,0.4377382]
[1758999481308,9.36557626,109700.0,109690.0,0.62007022]
[1758999482227,9.09839734,109700.0,109690.0,0.62007022]
[1758999489310,9.09839734,109700.0,109690.0,0.4377382]
[1758999490689,9.10481711,109700.0,109690.0,0.4377382]
[1758999492578,9.09051751,109700.0,109690.0,0.4377382]
[1758999495478,9.10481707,109700.0,109690.0,0.4377382]
[1758999496679,9.09051751,109700.0,109690.0,0.4377382]
[1758999499544,9.08409774,109700.0,109690.0,0.4377382]
[1758999499757,9.10481768,109700.0,109690.0,0.4377382]
[1758999500706,8.92670779,109700.0,109690.0,0.4377382]
[1758999508938,8.74242018,109700.0,109690.0,0.4377382]
[1758999509141,8.58670779,109700.0,109690.0,0.4377382]
[1758999509365,8.57240823,109700.0,109690.0,0.4377382]
[1758999511607,8.37120102,109700.0,109690.0,0.4377382]
[1758999512473,8.38550058,109700.0,109690.0,0.4377382]
[1758999519253,8.37120102,109700.0,109690.0,0.4377382]
[1758999522296,8.38550058,109700.0,109690.0,0.4377382]
[1758999522952,8.38550058,109700.0,109690.0,0.4397482]
[1758999525489,8.37120102,109700.0,109690.0,0.4397482]
[1758999528544,8.38550058,109700.0,109690.0,0.4397482]
[1758999536890,8.37120102,109700.0,109690.0,0.4397482]
[1758999539685,8.38550049,109700.0,109690.0,0.4397482]
[1758999540308,8.38550049,109700.0,109690.0,0.3425782]
[1758999540515,8.38550049,109700.0,109690.0,0.0588582]
[1758999540719,8.38550049,109700.0,109690.0,0.4375782]
[1758999540899,8.38550049,109700.0,109690.0,0.0588582]
[1758999541035,8.38550049,109700.0,109690.0,0.4375782]
[1758999541237,8.38550049,109700.0,109690.0,0.0588582]
[1758999541465,8.38550049,109700.0,109690.0,0.4375782]
[1758999545512,8.18297953,109700.0,109690.0,0.4375782]
[1758999545709,8.16868006,109700.0,109690.0,0.4375782]
[1758999547257,8.16868006,109700.0,109690.0,0.4395782]
[1758999549101,8.18297963,109700.0,109690.0,0.4395782]
[1758999552828,8.18297963,109700.0,109690.0,0.4425382]
[1758999555640,8.16868006,109700.0,109690.0,0.4425382]
[1758999558965,8.18297963,109700.0,109690.0,0.4425382]
[1758999560609,8.36109168,109700.0,109690.0,0.4425382]
[1758999565200,7.82673168,109700.0,109690.0,0.4425382]
[1758999565421,8.36109168,109700.0,109690.0,0.4425382]
[1758999565874,8.34679211,109700.0,109690.0,0.4425382]
[1758999566371,8.16800287,109700.0,109690.0,0.4425382]
[1758999568350,8.16800287,109700.0,109690.0,0.0638182]
[1758999568605,8.16800287,109700.0,109690.0,0.4424982]
[1758999569125,8.18230244,109700.0,109690.0,0.4424982]
[1758999573143,8.18230244,109700.0,109690.0,0.3474982]
[1758999573360,8.18230244,109700.0,109690.0,0.4395382]
[1758999580231,8.18230244,109700.0,109690.0,0.0608582]
[1758999580414,8.18230244,109700.0,109690.0,0.4395382]
[1758999580613,8.18230244,109700.0,109690.0,0.0608582]
[1758999580834,8.18230244,109700.0,109690.0,0.4395382]
[1758999580983,7.64794244,109700.0,109690.0,0.4395382]
[1758999581186,8.18230244,109700.0,109690.0,0.4395382]
[1758999583942,8.16800287,109700.0,109690.0,0.4395382]
[1758999585054,8.16800287,109700.0,109690.0,0.0608582]
[1758999585259,8.16800287,109700.0,109690.0,0.4395382]
[1758999585998,7.63364287,109700.0,109690.0,0.4395382]
[1758999586196,8.16800287,109700.0,109690.0,0.4395382]
[1758999587031,8.18230244,109700.0,109690.0,0.4395382]
[1758999590257,8.16800287,109700.0,109690.0,0.4395382]
[1758999591262,8.16800287,109700.0,109690.0,0.4427582]
[1758999593762,8.16800564,109700.0,109690.0,0.4427582]
[1758999594645,8.18230521,109700.0,109690.0,0.4427582]
[1758999597172,8.16800564,109700.0,109690.0,0.4427582]
[1758999600481,8.18230521,109700.0,109690.0,0.4427582]
[1758999601462,7.64794521,109700.0,109690.0,0.4427582]
[1758999601664,8.18230521,109700.0,109690.0,0.4427582]
[1758999610943,8.18230521,109700.0,109690.0,0.4395382]
[1758999611350,8.16800564,109700.0,109690.0,0.4395382]
[1758999612788,7.97356859,109700.0,109690.0,0.4395382]
[1758999613389,7.43920859,109700.0,109690.0,0.4427082]
[1758999613835,7.70638859,109700.0,109690.0,0.4427082]
[1758999614512,7.7206881,109700.0,109690.0,0.4427082]
[1758999616985,7.7206881,109700.0,109690.0,0.62504022]
[1758999620836,7.5453309,109700.0,109690.0,0.62504022]
[1758999622640,7.63436786,109700.0,109690.0,0.62504022]
[1758999633801,7.62006835,109700.0,109690.0,0.62504022]
[1758999635696,7.62006736,109700.0,109690.0,0.62504022]
[1758999636936,7.63436677,109700.0,109690.0,0.62504022]
[1758999638055,7.62006736,109700.0,109690.0,0.62504022]
[1758999640963,7.63436677,109700.0,109690.0,0.62504022]
[1758999642348,7.62794506,109700.0,109690.0,0.62504022]
[1758999645424,7.6343665,109700.0,109690.0,0.62504022]
[1758999645671,7.62794506,109700.0,109690.0,0.62504022]
[1758999646059,7.63436652,109700.0,109690.0,0.62504022]
[1758999646465,7.45205112,109700.0,109690.0,0.62504022]
[1758999646670,7.45205114,109700.0,109690.0,0.62504022]
[1758999646847,7.63436654,109700.0,109690.0,0.62504022]
[1758999647486,7.62006713,109700.0,109690.0,0.62504022]
[1758999648534,7.62006713,109700.0,109690.0,0.53000022]
[1758999648734,7.62006713,109700.0,109690.0,0.62500022]
[1758999649584,7.42908246,109700.0,109690.0,0.62500022]
[1758999650677,7.44338178,109700.0,109690.0,0.62500022]
[1758999654381,7.44338178,109700.0,109690.0,0.24636022]
[1758999654596,7.44338178,109700.0,109690.0,0.53000022]
[1758999654824,7.44338178,109700.0,109690.0,0.62500022]
[1758999655834,7.44338178,109700.0,109690.0,0.24636022]
[1758999656050,7.44338178,109700.0,109690.0,0.62500022]
[1758999666483,7.26106638,109700.0,109690.0,0.62500022]
[1758999666880,6.90484897,109700.0,109690.0,0.62500022]
[1758999667103,7.26106638,109700.0,109690.0,0.62500022]
[1758999667530,6.90484897,109700.0,109690.0,0.62500022]
[1758999667766,7.26106638,109700.0,109690.0,0.62500022]
[1758999673670,7.26106638,109700.0,109690.0,0.62183022]
[1758999676130,7.26106638,109700.0,109690.0,0.62207756]
[1758999681448,6.90484897,109700.0,109690.0,0.62207756]
[1758999681645,7.24676706,109700.0,109690.0,0.24653756]
[1758999682027,7.24676706,109700.0,109690.0,0.62513756]
[1758999682225,7.24676791,109700.0,109690.0,0.62513756]
[1758999684587,7.4248085,109700.0,109690.0,0.24653756]
[1758999684794,7.4248085,109700.0,109690.0,0.62513756]
[1758999684993,7.4248085,109700.0,109690.0,0.62003756]
[1758999685372,7.4248085,109700.0,109690.0,0.24143756]
[1758999685575,7.4248085,109700.0,109690.0,0.62003756]
[1758999690009,7.4248085,109700.0,109690.0,0.24143756]
[1758999690249,7.4248085,109700.0,109690.0,0.62003756]
[1758999692078,7.4248085,109700.0,109690.0,0.24143756]
[1758999692283,7.4248085,109700.0,109690.0,0.62003756]
[1758999692637,7.4248085,109700.0,109690.0,0.24143756]
[1758999692835,7.4248085,109700.0,109690.0,0.62003756]
[1758999693039,7.4248085,109700.0,109690.0,0.24143756]
[1758999693244,7.4248085,109700.0,109690.0,0.62003756]
[1758999694264,7.4248085,109700.0,109690.0,0.52503756]
[1758999694482,7.4248085,109700.0,109690.0,0.62003756]
[1758999698785,7.4248085,109700.0,109690.0,0.24143756]
[1758999698786,7.6071239,109700.0,109690.0,0.24143756]
[1758999699148,7.6071239,109700.0,109690.0,0.62003756]
[1758999700577,7.6071239,109700.0,109690.0,0.24143756]
[1758999700764,7.6071239,109700.0,109690.0,0.62003756]
[1758999701668,7.6214231,109700.0,109690.0,0.62003756]
[1758999702203,7.6214231,109700.0,109690.0,0.24143756]
[1758999702367,7.6214231,109700.0,109690.0,0.62003756]
[1758999703251,7.43245855,109700.0,109690.0,0.62003756]
[1758999703668,7.43245669,109700.0,109690.0,0.62003756]
[1758999704053,7.25014129,109700.0,109690.0,0.62003756]
[1758999705924,7.23584209,109700.0,109690.0,0.62003756]
[1758999708045,6.70158409,109700.0,109690.0,0.62213756]
[1758999708273,7.23584209,109700.0,109690.0,0.62213756]
[1758999710065,7.01586011,109700.0,109690.0,0.62213756]
[1758999710521,7.19817551,109700.0,109690.0,0.62213756]
[1758999712501,7.198176,109700.0,109690.0,0.62213756]
[1758999713541,7.03165309,109700.0,109690.0,0.62213756]
[1758999717704,7.03165309,109700.0,109690.0,0.62510756]
[1758999721117,6.84933769,109700.0,109690.0,0.62510756]
[1758999722258,6.84933769,109700.0,109690.0,0.24650756]
[1758999722574,6.84933769,109700.0,109690.0,0.62506756]
[1758999729725,7.03165309,109700.0,109690.0,0.62506756]
[1758999731626,7.03165309,109700.0,109690.0,0.24650756]
[1758999731825,7.03165309,109700.0,109690.0,0.62506756]
[1758999740322,7.03165309,109700.0,109690.0,0.24650756]
[1758999740596,7.03165309,109700.0,109690.0,0.62506756]
[1758999740955,7.03165309,109700.0,109690.0,0.62209756]
[1758999741155,7.03165397,109700.0,109690.0,0.62209756]
[1758999743248,7.03165397,109700.0,109690.0,0.24353756]
[1758999743498,7.03165397,109700.0,109690.0,0.05910554]
[1758999743711,7.03165397,109700.0,109690.0,0.43971554]
[1758999743915,7.03165397,109700.0,109690.0,0.62204756]
[1758999744229,7.03165397,109700.0,109690.0,0.06115554]
[1758999744450,7.03165397,109700.0,109690.0,0.62232756]
[1758999746133,7.03165397,109700.0,109690.0,0.62556756]
[1758999746665,6.85362775,109700.0,109690.0,0.62556756]
[1758999747771,6.85362775,109700.0,109690.0,0.52740756]
[1758999747984,6.85362775,109700.0,109690.0,0.62240756]
[1758999753182,6.85362775,109700.0,109690.0,0.52740756]
[1758999753364,6.85362775,109700.0,109690.0,0.62240756]
[1758999753910,6.85362775,109700.0,109690.0,0.62236756]
[1758999754089,6.85362775,109700.0,109690.0,0.24348756]
[1758999754291,6.85362775,109700.0,109690.0,0.62236756]
[1758999754699,6.85362775,109700.0,109690.0,0.24348756]
[1758999754883,6.85362775,109700.0,109690.0,0.62236756]
[1758999756890,6.85362775,109700.0,109690.0,0.62560756]
[1758999759037,6.85362775,109700.0,109690.0,0.62236756]
[1758999762807,6.85362868,109700.0,109690.0,0.62236756]
[1758999764435,6.85362868,109700.0,109690.0,0.44003554]
[1758999768051,6.85362868,109700.0,109690.0,0.62236756]
[1758999775820,6.84720591,109700.0,109690.0,0.62236756]
[1758999775979,6.85362869,109700.0,109690.0,0.62236756]
[1758999776380,6.6548447,109700.0,109690.0,0.62236756]
[1758999779483,6.29861292,109700.0,109690.0,0.62236756]
[1758999779724,6.6548447,109700.0,109690.0,0.62538756]
[1758999791872,6.6548447,109700.0,109690.0,0.44305554]
[1758999792078,6.6548447,109700.0,109690.0,0.62538756]
[1758999793933,6.46901264,109700.0,109690.0,0.62538756]
[1758999796255,6.46901248,109700.0,109690.0,0.62538756]
[1758999796873,6.46901248,109700.0,109690.0,0.05910554]
[1758999797066,6.46901248,109700.0,109690.0,0.43778554]
[1758999797753,6.46901248,109700.0,109690.0,0.05910554]
[1758999797931,6.46901248,109700.0,109690.0,0.43778554]
[1758999806544,6.64716274,109700.0,109690.0,0.43778554]
[1758999814253,6.64716274,109700.0,109690.0,0.41778554]
[1758999814661,6.67138274,109700.0,109690.0,0.41778554]
[1758999815891,6.67138274,109700.0,109690.0,0.41990554]
[1758999815892,6.1370007,109700.0,109690.0,0.41990554]
[1758999816099,6.67138274,109700.0,109690.0,0.41990554]
[1758999818985,6.96557451,109700.0,109690.0,0.03910554]
[1758999819171,6.96557451,109700.0,109690.0,0.38763364]
[1758999819377,7.30557451,109700.0,109690.0,0.38763364]
[1758999820212,7.30557451,109700.0,109690.0,0.38363364]
[1758999820619,7.30557451,109700.0,109690.0,0.38663364]
[1758999822559,7.31987448,109700.0,109690.0,0.38663364]
[1758999825890,7.30557451,109700.0,109690.0,0.38663364]
[1758999827462,6.50400145,109700.0,109690.0,0.38663364]
[1758999827664,7.27857376,109700.0,109690.0,0.38663364]
[1758999829756,7.05853153,109700.0,109690.0,0.38663364]
[1758999829954,9.19426058,109700.0,109690.0,0.38663364]
[1758999830194,9.20856048,109700.0,109690.0,0.38663364]
[1758999833573,8.94136946,109700.0,109690.0,0.38663364]
[1758999837276,8.92706956,109700.0,109690.0,0.38663364]
[1758999840650,8.94136946,109700.0,109690.0,0.38663364]
[1758999842470,8.94136538,109700.0,109690.0,0.38663364]
[1758999843333,8.73162548,109700.0,109690.0,0.38663364]
[1758999843486,8.91394088,109700.0,109690.0,0.38663364]
[1758999843659,8.94136909,109700.0,109690.0,0.38663364]
[1758999847894,8.94136909,109700.0,109690.0,0.38868364]
[1758999847895,8.40698705,109700.0,109690.0,0.38868364]
[1758999848125,8.94136909,109700.0,109690.0,0.38868364]
[1758999853330,8.71578034,109700.0,109690.0,0.38868364]
[1758999853630,8.57714909,109700.0,109690.0,0.38868364]
[1758999866829,8.57714909,109700.0,109690.0,0.29364364]
[1758999868625,8.39901936,109700.0,109690.0,0.29364364]
[1758999870605,8.39901936,109700.0,109690.0,0.38864364]
[1758999873345,8.39901936,109700.0,109690.0,0.01000364]
[1758999873642,8.39901936,109700.0,109690.0,0.38864364]
[1758999877082,8.39901936,109700.0,109690.0,0.01000364]
[1758999877617,8.39901936,109700.0,109690.0,0.38864364]
[1758999878311,8.39901936,109700.0,109690.0,0.01000364]
[1758999878590,8.39901936,109700.0,109690.0,0.38864364]
[1758999893676,8.39901936,109700.0,109690.0,0.39864364]
[1758999900830,8.39901936,109700.0,109690.0,0.40158364]
[1758999902324,8.39902428,109700.0,109690.0,0.40158364]
[1758999906163,8.39902428,109700.0,109690.0,0.39864364]
[1758999909166,8.39902428,109700.0,109690.0,0.42879554]
[1758999909757,8.73902428,109700.0,109690.0,0.42879554]
[1758999910894,8.73902402,109700.0,109690.0,0.42879554]
[1758999915158,8.73902396,109700.0,109690.0,0.42879554]
[1758999919500,8.73902395,109700.0,109690.0,0.42879554]
[1758999922689,8.57788995,109700.0,109690.0,0.42879554]
[1758999925774,8.36752224,109700.0,109690.0,0.42879554]
[1758999925941,8.56413758,109700.0,109690.0,0.42879554]
[1758999926336,8.55046178,109700.0,109690.0,0.42879554]
[1758999926562,8.57788999,109700.0,109690.0,0.42879554]
[1758999928721,8.75602246,109700.0,109690.0,0.42879554]
[1758999930970,8.75602246,109700.0,109690.0,0.43191554]
[1758999931622,8.74172252,109700.0,109690.0,0.43191554]
[1758999934348,8.74172252,109700.0,109690.0,0.42879554]
[1758999934533,8.75602246,109700.0,109690.0,0.42879554]
[1758999935869,8.74172252,109700.0,109690.0,0.42879554]
[1758999939049,8.75602246,109700.0,109690.0,0.42879554]
[1758999941005,8.75602283,109700.0,109690.0,0.42879554]
[1758999941766,8.75602283,109700.0,109690.0,0.43879554]
[1758999951207,8.74172289,109700.0,109690.0,0.43879554]
[1758999958688,8.75602283,109700.0,109690.0,0.43879554]
[1758999959793,8.74172289,109700.0,109690.0,0.43879554]
[1758999962723,8.75602283,109700.0,109690.0,0.43879554]
[1758999966238,8.74172289,109700.0,109690.0,0.43879554]
[1758999966947,8.20733811,109700.0,109690.0,0.43879554]
[1758999967154,8.74172289,109700.0,109690.0,0.44197554]
[1758999967875,8.74172289,109700.0,109690.0,0.43875554]
[1758999969393,8.75602283,109700.0,109690.0,0.43875554]
[1758999970436,8.75602283,109700.0,109690.0,0.06015554]
[1758999970623,8.78302358,109700.0,109690.0,0.31155364]
[1758999975739,8.75602283,109700.0,109690.0,0.31665364]
[1758999978011,8.74172289,109700.0,109690.0,0.31665364]
[1758999979654,8.74172289,109700.0,109690.0,0.41165364]
[1758999980891,8.75602302,109700.0,109690.0,0.41165364]
[1758999983437,8.75602302,109700.0,109690.0,0.40857364]
[1758999987083,8.75602199,109700.0,109690.0,0.40857364]
[1758999990659,8.57788362,109700.0,109690.0,0.40857364]
[1758999990866,8.56358349,109700.0,109690.0,0.40857364]
[1758999993124,8.35140952,109700.0,109690.0,0.40857364]
[1758999993720,8.23788362,109700.0,109690.0,0.40857364]
[1758999995045,8.22358349,109700.0,109690.0,0.40857364]
[1758999997966,8.22358349,109700.0,109690.0,0.40877364]
[1758999998183,8.23788362,109700.0,109690.0,0.40877364]
[1758999998905,8.23788362,109700.0,109690.0,0.02997364]
[1758999999122,8.23788362,109700.0,109690.0,0.40881364]
[1758999999827,8.23788362,109700.0,109690.0,0.02997364]
[1759000000054,8.23788362,109700.0,109690.0,0.40881364]
[1759000000262,8.23788362,109700.0,109690.0,0.40889364]
[1759000002389,8.23788362,109700.0,109690.0,0.02997364]
[1759000002565,8.23788362,109700.0,109690.0,0.40885364]
[1759000005734,8.22358349,109700.0,109690.0,0.40885364]
[1759000008740,7.86733708,109700.0,109690.0,0.40885364]
[1759000008983,8.23788362,109700.0,109690.0,0.40885364]
[1759000013505,8.23788362,109700.0,109690.0,0.40683364]
[1759000015666,8.03751887,109700.0,109690.0,0.40683364]
[1759000016516,7.8150508,109700.0,109690.0,0.40683364]
[1759000019758,7.82935093,109700.0,109690.0,0.40683364]
[1759000020815,7.82935093,109700.0,109690.0,0.40892364]
[1759000021012,7.82935093,109700.0,109690.0,0.41197364]
[1759000028159,7.8150508,109700.0,109690.0,0.41197364]
[1759000028760,7.81505079,109700.0,109690.0,0.41197364]
[1759000031362,7.82935093,109700.0,109690.0,0.41197364]
[1759000032993,7.61766103,109700.0,109690.0,0.41197364]
[1759000035010,7.60336089,109700.0,109690.0,0.41197364]
[1759000038098,7.61766103,109700.0,109690.0,0.41197364]
[1759000048778,7.60336089,109700.0,109690.0,0.41197364]
[1759000049565,7.24711448,109700.0,109690.0,0.41197364]
[1759000049772,7.60336089,109700.0,109690.0,0.41197364]
[1759000050590,7.78148652,109700.0,109690.0,0.41197364]
[1759000051263,7.78148652,109700.0,109690.0,0.40659364]
[1759000051797,7.79578667,109700.0,109690.0,0.40659364]
[1759000055413,7.78148652,109700.0,109690.0,0.40659364]
[1759000056254,7.78148652,109700.0,109690.0,0.02795364]
[1759000056452,7.78148652,109700.0,109690.0,0.40659364]
[1759000058622,7.79578667,109700.0,109690.0,0.40659364]
[1759000066973,7.78148652,109700.0,109690.0,0.40659364]
[1759000069802,7.78148652,109700.0,109690.0,0.40858364]
[1759000070011,7.79578667,109700.0,109690.0,0.40858364]
[1759000076862,7.78148652,109700.0,109690.0,0.40858364]
[1759000079064,7.78148652,109700.0,109690.0,0.41153364]
[1759000079993,7.79578667,109700.0,109690.0,0.41153364]
[1759000081006,7.78148652,109700.0,109690.0,0.41153364]
[1759000081511,7.24711448,109700.0,109690.0,0.41153364]
[1759000081735,7.78148652,109700.0,109690.0,0.41153364]
[1759000082352,7.57902817,109700.0,109690.0,0.41153364]
[1759000084082,7.59332832,109700.0,109690.0,0.41153364]
[1759000089835,7.57902817,109700.0,109690.0,0.41153364]
[1759000093185,7.59332832,109700.0,109690.0,0.41153364]
[1759000096457,7.57902817,109700.0,109690.0,0.41153364]
[1759000097082,7.35412947,109700.0,109690.0,0.41153364]
[1759000107260,7.35412947,109700.0,109690.0,0.03289364]
[1759000107486,7.35412947,109700.0,109690.0,0.41149364]
[1759000109103,6.81975743,109700.0,109690.0,0.41149364]
[1759000109317,7.35412947,109700.0,109690.0,0.41149364]
[1759000110678,7.17598297,109700.0,109690.0,0.41149364]
[1759000112355,7.19028299,109700.0,109690.0,0.41149364]
[1759000112723,7.19028299,109700.0,109690.0,0.03289364]
[1759000112902,7.19028299,109700.0,109690.0,0.41149364]
[1759000116660,7.17598297,109700.0,109690.0,0.41149364]
[1759000119839,7.19028299,109700.0,109690.0,0.41149364]
[1759000120417,6.83405745,109700.0,109690.0,0.41149364]
[1759000120635,7.19028299,109700.0,109690.0,0.41149364]
[1759000125610,7.19028299,109700.0,109690.0,0.40854364]
[1759000125821,6.83405745,109700.0,109690.0,0.41176364]
[1759000126036,7.17598297,109700.0,109690.0,0.40854364]
[1759000128743,7.16955941,109700.0,109690.0,0.40854364]
[1759000129274,7.19028259,109700.0,109690.0,0.40854364]
[1759000129482,7.18385943,109700.0,109690.0,0.40854364]
[1759000129685,7.19028269,109700.0,109690.0,0.40854364]
[1759000133094,6.97773499,109700.0,109690.0,0.40854364]
[1759000148653,6.97773499,109700.0,109690.0,0.41151364]
[1759000149070,6.62150945,109700.0,109690.0,0.41151364]
[1759000149323,6.97773499,109700.0,109690.0,0.41151364]
[1759000152339,6.62150945,109700.0,109690.0,0.41151364]
[1759000152546,6.97773499,109700.0,109690.0,0.41151364]
[1759000158788,6.97773499,109700.0,109690.0,0.03291364]
[1759000159000,6.97773499,109700.0,109690.0,0.41147364]
[1759000168038,6.96343497,109700.0,109690.0,0.41147364]
[1759000170701,7.14157171,109700.0,109690.0,0.41147364]
[1759000171121,7.15587173,109700.0,109690.0,0.41147364]
[1759000171481,7.14157171,109700.0,109690.0,0.41147364]
[1759000174535,7.15587173,109700.0,109690.0,0.41147364]
[1759000177627,6.98083716,109700.0,109690.0,0.41147364]
[1759000181881,6.98083716,109700.0,109690.0,0.03291364]
[1759000182105,6.98083716,109700.0,109690.0,0.40850364]
[1759000185796,6.98083716,109700.0,109690.0,0.02994364]
[1759000186022,6.98083716,109700.0,109690.0,0.40850364]
[1759000189593,6.9744139,109700.0,109690.0,0.40850364]
[1759000189772,6.9808374,109700.0,109690.0,0.40850364]
[1759000190213,6.9744139,109700.0,109690.0,0.40850364]
[1759000190403,6.98083741,109700.0,109690.0,0.40850364]
[1759000200122,6.98083742,109700.0,109690.0,0.40850364]
[1759000210226,6.98083742,109700.0,109690.0,0.43865554]
[1759000211482,6.98083742,109700.0,109690.0,0.34162554]
[1759000211694,6.98083742,109700.0,109690.0,0.43662554]
[1759000211998,6.98083742,109700.0,109690.0,0.05810554]
[1759000212202,6.98083742,109700.0,109690.0,0.43662554]
[1759000212404,6.76645862,109700.0,109690.0,0.43662554]
[1759000213708,6.7521586,109700.0,109690.0,0.43662554]
[1759000214616,6.7521586,109700.0,109690.0,0.05810554]
[1759000214730,6.7521586,109700.0,109690.0,0.43662554]
[1759000220158,6.76645862,109700.0,109690.0,0.43662554]
[1759000221835,6.76645862,109700.0,109690.0,0.05810554]
[1759000222041,6.55104154,109700.0,109690.0,0.43662554]
[1759000222563,6.52463271,109700.0,109690.0,0.43662554]
[1759000225883,5.99027043,109700.0,109690.0,0.43877554]
[1759000226073,6.51033269,109700.0,109690.0,0.44170554]
[1759000232530,6.51033269,109700.0,109690.0,0.06318554]
[1759000232727,6.33221225,109700.0,109690.0,0.44170554]
[1759000233127,6.34651227,109700.0,109690.0,0.43877554]
[1759000234584,6.34651227,109700.0,109690.0,0.06025554]
[1759000234772,6.34651227,109700.0,109690.0,0.43877554]
[1759000236281,6.33221225,109700.0,109690.0,0.43877554]
[1759000236764,6.33221225,109700.0,109690.0,0.06025554]
[1759000236921,6.33221225,109700.0,109690.0,0.43877554]
[1759000239474,6.34651227,109700.0,109690.0,0.43877554]
[1759000241424,6.12786183,109700.0,109690.0,0.43877554]
[1759000246532,6.11356147,109700.0,109690.0,0.43877554]
[1759000250831,6.12786152,109700.0,109690.0,0.43877554]
[1759000258769,5.95092145,109700.0,109690.0,0.43877554]
[1759000261718,5.94449827,109700.0,109690.0,0.43877554]
[1759000261922,5.95092147,109700.0,109690.0,0.43877554]
[1759000262534,5.95092147,109700.0,109690.0,0.06025554]
[1759000262749,5.95092147,109700.0,109690.0,0.43873554]
[1759000270402,5.95092147,109700.0,109690.0,0.06025554]
[1759000270547,5.95092147,109700.0,109690.0,0.43873554]
[1759000271354,5.95092147,109700.0,109690.0,0.06025554]
[1759000271584,5.95092147,109700.0,109690.0,0.43658554]
[1759000272106,5.95092147,109700.0,109690.0,0.05810554]
[1759000272349,5.95092147,109700.0,109690.0,0.43658554]
[1759000275350,5.95092173,109700.0,109690.0,0.43658554]
[1759000277999,5.95092174,109700.0,109690.0,0.43658554]
[1759000287920,5.7268816,109700.0,109690.0,0.43658554]
[1759000290298,5.54394623,109700.0,109690.0,0.43658554]
[1759000294703,5.72208397,109700.0,109690.0,0.43658554]
[1759000302740,5.72208397,109700.0,109690.0,0.43857554]
[1759000302958,5.72208397,109700.0,109690.0,0.44181554]
[1759000305399,5.72208397,109700.0,109690.0,0.43857554]
[1759000305620,5.72208397,109700.0,109690.0,0.44181554]
[1759000305835,5.52736721,109700.0,109690.0,0.44181554]
[1759000310858,5.52736721,109700.0,109690.0,0.44135054]
[1759000312124,5.35170799,109700.0,109690.0,0.44135054]
[1759000313911,5.35170799,109700.0,109690.0,0.43811054]
[1759000321139,5.35170799,109700.0,109690.0,0.43807054]
[1759000321669,5.35170789,109700.0,109690.0,0.43807054]
[1759000334763,5.35170771,109700.0,109690.0,0.43807054]
[1759000343541,5.35170771,109700.0,109690.0,0.44111054]
[1759000348577,4.81732813,109700.0,109690.0,0.44111054]
[1759000348804,5.35170771,109700.0,109690.0,0.44111054]
[1759000350404,5.15773643,109700.0,109690.0,0.44111054]
[1759000353203,5.15773643,109700.0,109690.0,0.43807054]
[1759000354593,4.62335685,109700.0,109690.0,0.44111054]
[1759000354779,4.97958103,109700.0,109690.0,0.44111054]
[1759000360451,4.62335685,109700.0,109690.0,0.44111054]
[1759000360661,4.97958103,109700.0,109690.0,0.44111054]
[1759000370776,4.78656434,109700.0,109690.0,0.44111054]
[1759000384614,4.61098418,109700.0,109690.0,0.44111054]
[1759000398761,4.61098418,109700.0,109690.0,0.43807054]
[1759000398963,4.61098418,109700.0,109690.0,0.05764054]
[1759000399387,4.61098418,109700.0,109690.0,0.34104054]
[1759000399812,4.61098418,109700.0,109690.0,0.05764054]
[1759000400020,4.61098418,109700.0,109690.0,0.34104054]
[1759000404247,4.60163818,109700.0,109690.0,0.34104054]
[1759000407723,4.60163818,109700.0,109690.0,0.43604054]
[1759000416617,4.7798062,109700.0,109690.0,0.43814054]
[1759000425660,4.7798062,109700.0,109690.0,0.44116054]
[1759000427586,4.7798062,109700.0,109690.0,0.43604054]
[1759000427799,4.7798062,109700.0,109690.0,0.43814054]
[1759000428430,4.77980652,109700.0,109690.0,0.43814054]
[1759000431479,4.77980652,109700.0,109690.0,0.05974054]
[1759000431711,4.77980652,109700.0,109690.0,0.43810054]
[1759000432333,4.60414159,109700.0,109690.0,0.43810054]
[1759000432531,4.06974939,109700.0,109690.0,0.44124054]
[1759000432764,4.59771808,109700.0,109690.0,0.44124054]
[1759000432886,4.60414159,109700.0,109690.0,0.44124054]
[1759000436651,4.37874418,109700.0,109690.0,0.44124054]
[1759000437091,4.16646011,109700.0,109690.0,0.44124054]
[1759000440566,4.16646011,109700.0,109690.0,0.43810054]
[1759000442821,4.16646011,109700.0,109690.0,0.05764054]
[1759000443028,4.16646011,109700.0,109690.0,0.43600054]
[1759000443353,3.98995353,109700.0,109690.0,0.43600054]
[1759000444260,3.98995353,109700.0,109690.0,0.05764054]
[1759000444477,3.98995353,109700.0,109690.0,0.34295054]
[1759000444672,3.98995352,109700.0,109690.0,0.34295054]
[1759000450506,3.98995352,109700.0,109690.0,0.34100054]
[1759000451081,3.98995352,109700.0,109690.0,0.43616054]
[1759000451319,3.98995352,109700.0,109690.0,0.44116054]
[1759000456536,3.98995352,109700.0,109690.0,0.06264054]
[1759000456740,3.98995352,109700.0,109690.0,0.44112054]
[1759000457329,3.98995352,109700.0,109690.0,0.44310054]
[1759000460994,3.98995352,109700.0,109690.0,0.44306054]
[1759000462334,3.98995352,109700.0,109690.0,0.44108054]
[1759000465178,3.98995352,109700.0,109690.0,0.06264054]
[1759000465432,3.98995352,109700.0,109690.0,0.44108054]
[1759000465661,3.98995352,109700.0,109690.0,0.44315054]
[1759000467621,3.98995352,109700.0,109690.0,0.44015054]
[1759000467828,3.98995352,109700.0,109690.0,0.44717054]
[1759000470403,3.98995351,109700.0,109690.0,0.44717054]
[1759000475044,3.98995351,109700.0,109690.0,0.44407054]
[1759000475562,3.98995351,109700.0,109690.0,0.44200054]
[1759000478751,3.81181292,109700.0,109690.0,0.44200054]
[1759000479895,3.81181292,109700.0,109690.0,0.44407054]
[1759000481718,3.63625399,109700.0,109690.0,0.44407054]
[1759000483593,3.63625399,109700.0,109690.0,0.06364054]
[1759000483826,3.63625399,109700.0,109690.0,0.44200054]
[1759000485384,3.63625399,109700.0,109690.0,0.06364054]
[1759000485586,3.63625399,109700.0,109690.0,0.44709054]
[1759000489117,3.63625399,109700.0,109690.0,0.03857864]
[1759000489356,3.63625399,109700.0,109690.0,0.31684864]
[1759000498208,3.63625399,109700.0,109690.0,0.31886864]
[1759000499014,3.28000238,109700.0,109690.0,0.32192864]
[1759000499322,3.63625399,109700.0,109690.0,0.32192864]
[1759000502716,3.63625399,109700.0,109690.0,0.31696864]
[1759000504173,3.63625399,109700.0,109690.0,0.03348864]
[1759000504400,3.63625399,109700.0,109690.0,0.31696864]
[1759000505057,3.63625399,109700.0,109690.0,0.03348864]
[1759000505501,3.63625399,109700.0,109690.0,0.21568864]
[1759000512471,3.63625399,109700.0,109690.0,0.31712864]
[1759000513858,3.45530034,109700.0,109690.0,0.31712864]
[1759000529919,3.45530034,109700.0,109690.0,0.31914864]
[1759000533828,3.45530034,109700.0,109690.0,0.32216864]
[1759000540704,3.63344033,109700.0,109690.0,0.32216864]
[1759000541149,3.09904873,109700.0,109690.0,0.32216864]
[1759000541380,3.63344033,109700.0,109690.0,0.32216864]
[1759000542480,3.63343988,109700.0,109690.0,0.32216864]
[1759000544096,3.45918047,109700.0,109690.0,0.32216864]
[1759000546579,2.92478887,109700.0,109690.0,0.32216864]
[1759000547076,3.19198467,109700.0,109690.0,0.32216864]